[Event "Late-Titled-Tuesday-Blitz-October-03-2023"]
[Site "Chess.com"]
[Date "2023.10.03"]
[Round "10"]
[White "IngOscarArdila"]
[Black "zverr1"]
[Result "1-0"]
[WhiteElo "2343"]
[BlackElo "2484"]
[TimeControl "180+1"]
[EndTime "15:50:53 PDT"]
[Termination "IngOscarArdila won on time"]

1. d4 {[%clk 0:03:00]} 1... f5 {[%clk 0:02:59.3]} 2. c4 {[%clk 0:03:00.3]} 2...
Nf6 {[%clk 0:02:59.4]} 3. Nc3 {[%clk 0:03:00.6]} 3... g6 {[%clk 0:02:59.6]} 4.
Nf3 {[%clk 0:03:00.9]} 4... Bg7 {[%clk 0:02:51]} 5. g3 {[%clk 0:03:01]} 5... O-O
{[%clk 0:02:50.7]} 6. Bg2 {[%clk 0:03:01.4]} 6... d6 {[%clk 0:02:51.5]} 7. d5
{[%clk 0:03:01.1]} 7... c5 {[%clk 0:02:42]} 8. O-O {[%clk 0:02:59.6]} 8... Ng4
{[%clk 0:02:27]} 9. h3 {[%clk 0:02:52.7]} 9... Ne5 {[%clk 0:02:23.5]} 10. Qb3
{[%clk 0:02:24.8]} 10... Nxf3+ {[%clk 0:02:08.7]} 11. exf3 {[%clk 0:02:20.5]}
11... f4 {[%clk 0:01:46.2]} 12. Bxf4 {[%clk 0:02:17.1]} 12... Rxf4 {[%clk
0:01:45.9]} 13. gxf4 {[%clk 0:02:17.6]} 13... Bf5 {[%clk 0:01:45.8]} 14. Ne4
{[%clk 0:02:16.5]} 14... Nd7 {[%clk 0:01:36]} 15. Ng3 {[%clk 0:02:02.6]} 15...
Qf8 {[%clk 0:01:23.1]} 16. Qxb7 {[%clk 0:01:57.8]} 16... Rb8 {[%clk 0:01:22.6]}
17. Qxa7 {[%clk 0:01:57.9]} 17... Rxb2 {[%clk 0:01:19.7]} 18. Rae1 {[%clk
0:01:44.9]} 18... Bf6 {[%clk 0:00:22.3]} 19. Nxf5 {[%clk 0:01:41.7]} 19... gxf5
{[%clk 0:00:20.5]} 20. Qxd7 {[%clk 0:01:41.3]} 20... Rxa2 {[%clk 0:00:19.1]} 21.
Qe6+ {[%clk 0:01:39.5]} 21... Kh8 {[%clk 0:00:19.1]} 22. Re2 {[%clk 0:01:38.6]}
22... Ra4 {[%clk 0:00:17.1]} 23. Rc1 {[%clk 0:01:29.7]} 23... Ra8 {[%clk
0:00:04.1]} 24. Qxf5 {[%clk 0:01:28.4]} 24... Qg7 {[%clk 0:00:04.8]} 25. Qg4
{[%clk 0:01:26.7]} 25... Qh6 {[%clk 0:00:05.5]} 26. Kh1 {[%clk 0:01:12.8]} 26...
Rg8 {[%clk 0:00:05.9]} 27. Qf5 {[%clk 0:01:12.2]} 27... Qh4 {[%clk 0:00:06.3]}
28. Rg1 {[%clk 0:00:54.5]} 28... Rf8 {[%clk 0:00:06]} 29. Qg4 {[%clk 0:00:53.3]}
29... Qh6 {[%clk 0:00:05.8]} 30. Re6 {[%clk 0:00:46.7]} 30... Rg8 {[%clk
0:00:04.5]} 31. Qf5 {[%clk 0:00:45.7]} 31... Qh4 {[%clk 0:00:04.9]} 32. Rxf6
{[%clk 0:00:39.8]} 32... exf6 {[%clk 0:00:03.1]} 33. Qe4 {[%clk 0:00:33.6]}
33... Qxf2 {[%clk 0:00:02.3]} 34. Qe6 {[%clk 0:00:26.8]} 34... Rg6 {[%clk
0:00:01.8]} 35. Qxd6 {[%clk 0:00:26]} 35... Qe3 {[%clk 0:00:01]} 36. Qf8+ {[%clk
0:00:24.9]} 36... Rg8 {[%clk 0:00:01.3]} 37. Qxf6+ {[%clk 0:00:25]} 37... Rg7
{[%clk 0:00:02]} 38. d6 {[%clk 0:00:21.7]} 1-0

[Event "Late-Titled-Tuesday-Blitz-October-03-2023"]
[Site "Chess.com"]
[Date "2023.10.03"]
[Round "10"]
[White "Grossboss19"]
[Black "Lion_DL"]
[Result "1-0"]
[WhiteElo "2522"]
[BlackElo "2476"]
[TimeControl "180+1"]
[EndTime "15:50:58 PDT"]
[Termination "Grossboss19 won by resignation"]

1. Nf3 {[%clk 0:02:08.6]} 1... c5 {[%clk 0:02:57.6]} 2. g3 {[%clk 0:02:08.7]}
2... Nc6 {[%clk 0:02:57.3]} 3. Bg2 {[%clk 0:02:09.6]} 3... g6 {[%clk 0:02:55.7]}
4. O-O {[%clk 0:02:09.5]} 4... Bg7 {[%clk 0:02:56.2]} 5. c3 {[%clk 0:02:08.5]}
5... d5 {[%clk 0:02:54.1]} 6. d4 {[%clk 0:02:08.5]} 6... cxd4 {[%clk 0:02:54.2]}
7. Nxd4 {[%clk 0:02:04.1]} 7... Nf6 {[%clk 0:02:54.7]} 8. Bg5 {[%clk 0:01:58.6]}
8... O-O {[%clk 0:02:52.9]} 9. Bxf6 {[%clk 0:01:53.9]} 9... Bxf6 {[%clk
0:02:50.5]} 10. e3 {[%clk 0:01:52.6]} 10... e5 {[%clk 0:02:47.2]} 11. Nb3 {[%clk
0:01:42.1]} 11... Ne7 {[%clk 0:02:34.5]} 12. Na3 {[%clk 0:01:27.2]} 12... Rb8
{[%clk 0:02:29.5]} 13. c4 {[%clk 0:01:23.3]} 13... d4 {[%clk 0:02:21.8]} 14.
exd4 {[%clk 0:01:16.6]} 14... exd4 {[%clk 0:02:22.7]} 15. Nb5 {[%clk 0:01:11.3]}
15... Be6 {[%clk 0:02:09.5]} 16. Rc1 {[%clk 0:01:05.6]} 16... d3 {[%clk
0:01:47.4]} 17. Nc5 {[%clk 0:00:59.5]} 17... Bf5 {[%clk 0:01:42.4]} 18. Nxb7
{[%clk 0:00:51.5]} 18... Rxb7 {[%clk 0:01:19.3]} 19. Bxb7 {[%clk 0:00:48.7]}
19... d2 {[%clk 0:01:19.7]} 20. Rc2 {[%clk 0:00:37.1]} 20... Bxc2 {[%clk
0:01:09.7]} 21. Qxc2 {[%clk 0:00:38]} 21... Qb6 {[%clk 0:01:09]} 22. Bf3 {[%clk
0:00:35.4]} 22... Rd8 {[%clk 0:01:09.2]} 23. Rd1 {[%clk 0:00:25.1]} 23... Nf5
{[%clk 0:01:02.4]} 24. Rxd2 {[%clk 0:00:19.5]} 24... Rxd2 {[%clk 0:00:53]} 25.
Qxd2 {[%clk 0:00:19.3]} 25... a6 {[%clk 0:00:53.7]} 26. Nc3 {[%clk 0:00:18.5]}
26... Nd4 {[%clk 0:00:52.9]} 27. Bg2 {[%clk 0:00:17.2]} 27... h5 {[%clk
0:00:49.7]} 28. Nd5 {[%clk 0:00:17.2]} 28... Qe6 {[%clk 0:00:47.8]} 29. Qe3
{[%clk 0:00:16.5]} 29... Qf5 {[%clk 0:00:41.2]} 30. Qe4 {[%clk 0:00:15.6]} 30...
Qxe4 {[%clk 0:00:35.9]} 31. Bxe4 {[%clk 0:00:16.5]} 31... Bg7 {[%clk 0:00:33.4]}
32. b4 {[%clk 0:00:16.6]} 32... f5 {[%clk 0:00:31.1]} 33. Bd3 {[%clk 0:00:16.6]}
33... Bf8 {[%clk 0:00:28.5]} 34. c5 {[%clk 0:00:15.9]} 34... Nf3+ {[%clk
0:00:24.7]} 35. Kh1 {[%clk 0:00:15.8]} 35... Kf7 {[%clk 0:00:23.5]} 36. Bxa6
{[%clk 0:00:15.8]} 36... Ke6 {[%clk 0:00:23.2]} 37. Bc4 {[%clk 0:00:15.5]} 37...
Ke5 {[%clk 0:00:23.4]} 38. Nf4 {[%clk 0:00:14.8]} 38... Kd4 {[%clk 0:00:20.9]}
39. Bf7 {[%clk 0:00:11.5]} 39... g5 {[%clk 0:00:20.4]} 40. Ne6+ {[%clk
0:00:11.3]} 40... Kc4 {[%clk 0:00:19.2]} 41. Nxf8+ {[%clk 0:00:12.2]} 41... Kxb4
{[%clk 0:00:19.7]} 42. c6 {[%clk 0:00:12.1]} 42... Ne5 {[%clk 0:00:20.1]} 43. c7
{[%clk 0:00:11.9]} 43... Nxf7 {[%clk 0:00:20.7]} 44. c8=Q {[%clk 0:00:11.9]} 1-0

[Event "Late-Titled-Tuesday-Blitz-October-03-2023"]
[Site "Chess.com"]
[Date "2023.10.03"]
[Round "10"]
[White "GoldenShare"]
[Black "TheMagician"]
[Result "0-1"]
[WhiteElo "2573"]
[BlackElo "2271"]
[TimeControl "180+1"]
[EndTime "15:51:00 PDT"]
[Termination "TheMagician won by resignation"]

1. e4 {[%clk 0:03:00]} 1... c5 {[%clk 0:03:00]} 2. Nc3 {[%clk 0:03:00]} 2... d6
{[%clk 0:03:00.4]} 3. d4 {[%clk 0:02:59.5]} 3... cxd4 {[%clk 0:02:59.9]} 4. Qxd4
{[%clk 0:03:00.4]} 4... Bd7 {[%clk 0:02:59.9]} 5. Bc4 {[%clk 0:02:59.1]} 5...
Nc6 {[%clk 0:02:59.4]} 6. Qe3 {[%clk 0:02:55.4]} 6... Rc8 {[%clk 0:02:53.4]} 7.
Bb3 {[%clk 0:02:53.5]} 7... g6 {[%clk 0:02:52]} 8. Nge2 {[%clk 0:02:50.7]} 8...
Bg7 {[%clk 0:02:52.1]} 9. h4 {[%clk 0:02:50.5]} 9... Nf6 {[%clk 0:02:51]} 10.
Nf4 {[%clk 0:02:40.8]} 10... Ng4 {[%clk 0:02:44.7]} 11. Qg3 {[%clk 0:02:39.5]}
11... h5 {[%clk 0:02:42.7]} 12. f3 {[%clk 0:02:32.3]} 12... Nge5 {[%clk
0:02:42.1]} 13. Be3 {[%clk 0:02:24.2]} 13... Na5 {[%clk 0:02:37.3]} 14. Nfe2
{[%clk 0:02:15.8]} 14... Nec4 {[%clk 0:02:31.3]} 15. Bd4 {[%clk 0:02:11.5]}
15... Bxd4 {[%clk 0:02:25.8]} 16. Nxd4 {[%clk 0:02:11.8]} 16... Qb6 {[%clk
0:02:21.3]} 17. O-O-O {[%clk 0:01:59.5]} 17... e6 {[%clk 0:02:05]} 18. Rhe1
{[%clk 0:01:49.5]} 18... Qc5 {[%clk 0:01:55.3]} 19. Qg5 {[%clk 0:01:22.4]} 19...
Qxg5+ {[%clk 0:01:46.3]} 20. hxg5 {[%clk 0:01:22.9]} 20... a6 {[%clk 0:01:45.5]}
21. Nde2 {[%clk 0:01:16.2]} 21... Ke7 {[%clk 0:01:44.8]} 22. Nf4 {[%clk
0:01:13.9]} 22... b5 {[%clk 0:01:40]} 23. Rd3 {[%clk 0:01:05]} 23... Ne5 {[%clk
0:01:38.3]} 24. Rdd1 {[%clk 0:01:04.1]} 24... Bc6 {[%clk 0:01:34.5]} 25. Nce2
{[%clk 0:01:01.7]} 25... Nb7 {[%clk 0:01:31.5]} 26. Nd4 {[%clk 0:01:01.5]} 26...
a5 {[%clk 0:01:30.3]} 27. a3 {[%clk 0:00:58]} 27... Nc5 {[%clk 0:01:28]} 28. Kb1
{[%clk 0:00:54.9]} 28... Bd7 {[%clk 0:01:25.7]} 29. Ba2 {[%clk 0:00:53.8]} 29...
b4 {[%clk 0:01:25.5]} 30. Nfe2 {[%clk 0:00:40.4]} 30... bxa3 {[%clk 0:01:22.4]}
31. bxa3 {[%clk 0:00:40.5]} 31... Rb8+ {[%clk 0:01:22.4]} 32. Ka1 {[%clk
0:00:41]} 32... a4 {[%clk 0:01:21.6]} 33. Nc3 {[%clk 0:00:37.1]} 33... h4 {[%clk
0:01:07.6]} 34. f4 {[%clk 0:00:37.2]} 34... Ng4 {[%clk 0:01:03.7]} 35. f5 {[%clk
0:00:37.6]} 35... h3 {[%clk 0:00:56.5]} 36. f6+ {[%clk 0:00:30.7]} 36... Kd8
{[%clk 0:00:56.4]} 37. gxh3 {[%clk 0:00:24.3]} 37... Rxh3 {[%clk 0:00:55.4]} 38.
Nde2 {[%clk 0:00:25.2]} 38... Kc7 {[%clk 0:00:54.3]} 39. Rd4 {[%clk 0:00:23.6]}
39... Bc6 {[%clk 0:00:51.3]} 40. Red1 {[%clk 0:00:20.7]} 40... Rd8 {[%clk
0:00:49.2]} 41. Kb2 {[%clk 0:00:18.5]} 41... Ne5 {[%clk 0:00:48.9]} 42. Kc1
{[%clk 0:00:17.5]} 42... Nf3 {[%clk 0:00:48.8]} 43. Rb4 {[%clk 0:00:17.4]} 43...
Nxg5 {[%clk 0:00:47.8]} 44. Nd4 {[%clk 0:00:17.2]} 44... Rxc3 {[%clk 0:00:46.4]}
45. Kb2 {[%clk 0:00:14.7]} 45... Rg3 {[%clk 0:00:43.7]} 0-1

[Event "Late-Titled-Tuesday-Blitz-October-03-2023"]
[Site "Chess.com"]
[Date "2023.10.03"]
[Round "10"]
[White "jguerramzllo"]
[Black "Mikedannnn"]
[Result "0-1"]
[WhiteElo "2669"]
[BlackElo "2577"]
[TimeControl "180+1"]
[EndTime "15:51:03 PDT"]
[Termination "Mikedannnn won by resignation"]

1. e4 {[%clk 0:03:00.9]} 1... c5 {[%clk 0:02:59.3]} 2. Nf3 {[%clk 0:03:00.4]}
2... e6 {[%clk 0:02:58.5]} 3. d4 {[%clk 0:03:00.7]} 3... cxd4 {[%clk 0:02:59.4]}
4. Nxd4 {[%clk 0:03:01.1]} 4... Nc6 {[%clk 0:02:59.8]} 5. Nc3 {[%clk 0:02:59.7]}
5... Qc7 {[%clk 0:02:59.8]} 6. Be3 {[%clk 0:02:59.6]} 6... a6 {[%clk 0:02:59.7]}
7. g4 {[%clk 0:02:55]} 7... b5 {[%clk 0:02:57]} 8. Nxc6 {[%clk 0:02:46.7]} 8...
Qxc6 {[%clk 0:02:57.9]} 9. Bg2 {[%clk 0:02:35.4]} 9... b4 {[%clk 0:02:57.4]} 10.
Ne2 {[%clk 0:02:33.2]} 10... Bb7 {[%clk 0:02:56.1]} 11. Qd3 {[%clk 0:02:25.2]}
11... Nf6 {[%clk 0:02:54.4]} 12. f3 {[%clk 0:02:20.1]} 12... d5 {[%clk 0:02:28]}
13. O-O-O {[%clk 0:02:03.6]} 13... Rc8 {[%clk 0:02:21.2]} 14. g5 {[%clk
0:01:52.8]} 14... dxe4 {[%clk 0:02:18.3]} 15. fxe4 {[%clk 0:01:52.2]} 15... Ng4
{[%clk 0:02:06.6]} 16. Bd4 {[%clk 0:01:46.4]} 16... Bd6 {[%clk 0:01:18.1]} 17.
Kb1 {[%clk 0:01:39.9]} 17... Ne5 {[%clk 0:01:11.9]} 18. Bxe5 {[%clk 0:01:03.1]}
18... Bxe5 {[%clk 0:01:12.8]} 19. Nd4 {[%clk 0:01:03.5]} 19... Bxd4 {[%clk
0:01:03.9]} 20. Qxd4 {[%clk 0:01:03.8]} 20... Qxc2+ {[%clk 0:01:04]} 21. Ka1
{[%clk 0:01:04.4]} 21... O-O {[%clk 0:01:04.1]} 22. Qxb4 {[%clk 0:00:59.5]}
22... Qxg2 {[%clk 0:01:00.9]} 23. Rhe1 {[%clk 0:00:53.5]} 23... Rb8 {[%clk
0:00:55.5]} 24. Qd4 {[%clk 0:00:46.5]} 24... Qxh2 {[%clk 0:00:50.9]} 25. Rh1
{[%clk 0:00:44.8]} 25... Qg2 {[%clk 0:00:46.3]} 26. Rh4 {[%clk 0:00:43.7]} 26...
Qxg5 {[%clk 0:00:38.6]} 27. Rg1 {[%clk 0:00:39.8]} 27... e5 {[%clk 0:00:35.7]}
28. Qf2 {[%clk 0:00:36.4]} 28... Rbc8 {[%clk 0:00:30.9]} 29. Qe1 {[%clk
0:00:23.9]} 29... Rc1+ {[%clk 0:00:22]} 30. Qxc1 {[%clk 0:00:22.8]} 30... Qxh4
{[%clk 0:00:22.7]} 31. a3 {[%clk 0:00:17.8]} 31... Bxe4 {[%clk 0:00:22.1]} 32.
Re1 {[%clk 0:00:17.1]} 32... Re8 {[%clk 0:00:17]} 33. Qc4 {[%clk 0:00:15.7]}
33... Qxe1+ {[%clk 0:00:16.8]} 34. Ka2 {[%clk 0:00:16.2]} 34... Rd8 {[%clk
0:00:16.6]} 35. Qc7 {[%clk 0:00:13]} 35... Bd5+ {[%clk 0:00:16.9]} 36. b3 {[%clk
0:00:13.6]} 36... Qe2+ {[%clk 0:00:16.4]} 37. Ka1 {[%clk 0:00:13.4]} 37... Qd1+
{[%clk 0:00:16.5]} 38. Kb2 {[%clk 0:00:11.9]} 38... Qxb3+ {[%clk 0:00:17.2]} 39.
Kc1 {[%clk 0:00:12.6]} 39... Qc4+ {[%clk 0:00:17.9]} 40. Qxc4 {[%clk 0:00:12]}
40... Bxc4 {[%clk 0:00:18.8]} 0-1

[Event "Late-Titled-Tuesday-Blitz-October-03-2023"]
[Site "Chess.com"]
[Date "2023.10.03"]
[Round "10"]
[White "gabduschew"]
[Black "Alexei_Gubajdullin"]
[Result "0-1"]
[WhiteElo "2432"]
[BlackElo "2749"]
[TimeControl "180+1"]
[EndTime "15:51:09 PDT"]
[Termination "Alexei_Gubajdullin won on time"]

1. b3 {[%clk 0:02:58.8]} 1... Nf6 {[%clk 0:02:58.5]} 2. Bb2 {[%clk 0:02:58.2]}
2... g6 {[%clk 0:02:58.9]} 3. g4 {[%clk 0:02:57.3]} 3... Bg7 {[%clk 0:02:57]} 4.
Bg2 {[%clk 0:02:54.6]} 4... d5 {[%clk 0:02:45.4]} 5. h3 {[%clk 0:02:52.8]} 5...
Nc6 {[%clk 0:02:40.5]} 6. e3 {[%clk 0:02:51.4]} 6... e5 {[%clk 0:02:39.6]} 7.
Ne2 {[%clk 0:02:47.7]} 7... h5 {[%clk 0:02:37.4]} 8. g5 {[%clk 0:02:42.1]} 8...
Ne4 {[%clk 0:02:37]} 9. h4 {[%clk 0:02:38.6]} 9... Be6 {[%clk 0:02:31.3]} 10. d3
{[%clk 0:02:31.9]} 10... Nd6 {[%clk 0:02:31.1]} 11. c4 {[%clk 0:02:26.8]} 11...
dxc4 {[%clk 0:02:07.9]} 12. dxc4 {[%clk 0:02:20.1]} 12... O-O {[%clk 0:02:06.7]}
13. Nbc3 {[%clk 0:02:13.9]} 13... e4 {[%clk 0:02:04.5]} 14. Ng3 {[%clk
0:02:07.2]} 14... Bg4 {[%clk 0:01:59.7]} 15. Qb1 {[%clk 0:02:01.8]} 15... Ne5
{[%clk 0:01:43.2]} 16. O-O {[%clk 0:01:25.4]} 16... Nf3+ {[%clk 0:01:36]} 17.
Bxf3 {[%clk 0:01:11.5]} 17... Bxf3 {[%clk 0:01:35.7]} 18. Nd5 {[%clk 0:01:03.8]}
18... Qd7 {[%clk 0:01:28.4]} 19. Bxg7 {[%clk 0:00:49.5]} 19... Kxg7 {[%clk
0:01:23.5]} 20. Qb2+ {[%clk 0:00:48.3]} 20... f6 {[%clk 0:01:23.5]} 21. Nxf6
{[%clk 0:00:44.6]} 21... Rxf6 {[%clk 0:01:21.3]} 22. Qxf6+ {[%clk 0:00:42.7]}
22... Kh7 {[%clk 0:01:21.5]} 23. Kh2 {[%clk 0:00:38.4]} 23... Qg4 {[%clk
0:01:20.2]} 24. Qf4 {[%clk 0:00:37.4]} 24... Qxf4 {[%clk 0:00:50.4]} 25. exf4
{[%clk 0:00:37.1]} 25... Rf8 {[%clk 0:00:50.9]} 26. f5 {[%clk 0:00:27.6]} 26...
gxf5 {[%clk 0:00:45]} 27. Rfe1 {[%clk 0:00:21.3]} 27... f4 {[%clk 0:00:44.1]}
28. Ne2 {[%clk 0:00:20.4]} 28... Bg4 {[%clk 0:00:27.1]} 29. Nd4 {[%clk
0:00:18.7]} 29... c5 {[%clk 0:00:24.9]} 30. Nb5 {[%clk 0:00:18.5]} 30... Nf5
{[%clk 0:00:23.1]} 31. Rxe4 {[%clk 0:00:17.7]} 31... Nxh4 {[%clk 0:00:23.3]} 32.
Re7+ {[%clk 0:00:12.2]} 32... Kg6 {[%clk 0:00:22.8]} 33. Rxb7 {[%clk 0:00:11.2]}
33... Nf3+ {[%clk 0:00:22.8]} 34. Kg2 {[%clk 0:00:11.7]} 34... Nxg5 {[%clk
0:00:22.8]} 35. Rc7 {[%clk 0:00:10.9]} 35... h4 {[%clk 0:00:22.1]} 36. Rxc5
{[%clk 0:00:10.5]} 36... h3+ {[%clk 0:00:20.7]} 37. Kh2 {[%clk 0:00:10.3]} 37...
Re8 {[%clk 0:00:20.8]} 38. Rxg5+ {[%clk 0:00:06.7]} 38... Kxg5 {[%clk
0:00:20.5]} 39. Nd4 {[%clk 0:00:03.2]} 39... Re4 {[%clk 0:00:19.1]} 0-1

[Event "Late-Titled-Tuesday-Blitz-October-03-2023"]
[Site "Chess.com"]
[Date "2023.10.03"]
[Round "10"]
[White "Krakozia"]
[Black "Iball95"]
[Result "1-0"]
[WhiteElo "2983"]
[BlackElo "2771"]
[TimeControl "180+1"]
[EndTime "15:51:11 PDT"]
[Termination "Krakozia won by checkmate"]

1. e4 {[%clk 0:02:54.7]} 1... c5 {[%clk 0:03:00]} 2. Nf3 {[%clk 0:02:52.6]} 2...
e6 {[%clk 0:03:00.2]} 3. d4 {[%clk 0:02:51.2]} 3... cxd4 {[%clk 0:03:01.1]} 4.
Nxd4 {[%clk 0:02:51.4]} 4... Nf6 {[%clk 0:03:02]} 5. Nc3 {[%clk 0:02:51.6]} 5...
Nc6 {[%clk 0:03:02.4]} 6. a3 {[%clk 0:02:51.2]} 6... d5 {[%clk 0:03:01.8]} 7.
Bb5 {[%clk 0:02:50.2]} 7... Bd7 {[%clk 0:03:01.4]} 8. exd5 {[%clk 0:02:50]} 8...
exd5 {[%clk 0:03:02]} 9. O-O {[%clk 0:02:50.1]} 9... Be7 {[%clk 0:03:02.3]} 10.
Be3 {[%clk 0:02:46.9]} 10... O-O {[%clk 0:03:02.6]} 11. Be2 {[%clk 0:02:43.8]}
11... Re8 {[%clk 0:03:00]} 12. Bf3 {[%clk 0:02:40.7]} 12... Be6 {[%clk
0:02:17.2]} 13. Re1 {[%clk 0:02:39.9]} 13... Qd7 {[%clk 0:02:14.9]} 14. Bg5
{[%clk 0:02:26.8]} 14... h6 {[%clk 0:02:13.1]} 15. Bh4 {[%clk 0:02:25.8]} 15...
Rac8 {[%clk 0:02:05.3]} 16. Nxe6 {[%clk 0:02:20.7]} 16... fxe6 {[%clk
0:02:05.7]} 17. Qd3 {[%clk 0:02:20.2]} 17... Nh7 {[%clk 0:01:51.2]} 18. Bg3
{[%clk 0:02:13]} 18... Bf6 {[%clk 0:01:49.3]} 19. Bg4 {[%clk 0:02:09]} 19...
Rcd8 {[%clk 0:01:44.7]} 20. Rad1 {[%clk 0:02:03.6]} 20... Nf8 {[%clk 0:01:43.8]}
21. Bh5 {[%clk 0:01:56]} 21... Re7 {[%clk 0:01:43]} 22. b4 {[%clk 0:01:52.9]}
22... a6 {[%clk 0:01:43.4]} 23. h3 {[%clk 0:01:45]} 23... Nd4 {[%clk 0:01:24.1]}
24. Ne2 {[%clk 0:01:38]} 24... Nxe2+ {[%clk 0:01:22.4]} 25. Bxe2 {[%clk
0:01:37.2]} 25... Rc8 {[%clk 0:01:14.7]} 26. c4 {[%clk 0:01:28.8]} 26... dxc4
{[%clk 0:01:02.9]} 27. Qe4 {[%clk 0:01:27.3]} 27... Qc6 {[%clk 0:01:01.4]} 28.
Qg4 {[%clk 0:01:13.2]} 28... c3 {[%clk 0:00:54.8]} 29. Bd3 {[%clk 0:01:05.1]}
29... Rd7 {[%clk 0:00:46.6]} 30. Be4 {[%clk 0:00:43.7]} 30... Rxd1 {[%clk
0:00:43]} 31. Qxd1 {[%clk 0:00:38.2]} 31... Qb5 {[%clk 0:00:41.2]} 32. Bc2
{[%clk 0:00:33.9]} 32... a5 {[%clk 0:00:37.8]} 33. bxa5 {[%clk 0:00:28.2]} 33...
Qxa5 {[%clk 0:00:38.7]} 34. a4 {[%clk 0:00:27.1]} 34... Rd8 {[%clk 0:00:38.2]}
35. Qb1 {[%clk 0:00:26.6]} 35... Rd2 {[%clk 0:00:37.2]} 36. Bf4 {[%clk
0:00:26.7]} 36... Rd7 {[%clk 0:00:33.6]} 37. Be3 {[%clk 0:00:25.9]} 37... Qc7
{[%clk 0:00:29.2]} 38. Rd1 {[%clk 0:00:21.2]} 38... Rxd1+ {[%clk 0:00:29.7]} 39.
Qxd1 {[%clk 0:00:19.5]} 39... Qc6 {[%clk 0:00:30.3]} 40. Qd3 {[%clk 0:00:18.7]}
40... Qd5 {[%clk 0:00:29.8]} 41. Qe2 {[%clk 0:00:14.5]} 41... Nd7 {[%clk
0:00:29.3]} 42. Qg4 {[%clk 0:00:09]} 42... Ne5 {[%clk 0:00:27.5]} 43. Qh5 {[%clk
0:00:07.9]} 43... Nc4 {[%clk 0:00:27.3]} 44. Qe8# {[%clk 0:00:07.2]} 1-0

[Event "Late-Titled-Tuesday-Blitz-October-03-2023"]
[Site "Chess.com"]
[Date "2023.10.03"]
[Round "10"]
[White "nitpicker"]
[Black "Defenstrator"]
[Result "1-0"]
[WhiteElo "2256"]
[BlackElo "2403"]
[TimeControl "180+1"]
[EndTime "15:51:20 PDT"]
[Termination "nitpicker won by checkmate"]

1. d4 {[%clk 0:03:00.9]} 1... f5 {[%clk 0:02:57.4]} 2. c4 {[%clk 0:02:57.5]}
2... Nf6 {[%clk 0:02:56.2]} 3. Nf3 {[%clk 0:02:56.9]} 3... e6 {[%clk 0:02:55.3]}
4. Qc2 {[%clk 0:02:56.4]} 4... Bb4+ {[%clk 0:02:52.8]} 5. Bd2 {[%clk 0:02:50.8]}
5... Nc6 {[%clk 0:02:49.9]} 6. a3 {[%clk 0:02:45.4]} 6... Be7 {[%clk 0:02:35.7]}
7. Nc3 {[%clk 0:02:39.7]} 7... d6 {[%clk 0:02:36.4]} 8. d5 {[%clk 0:02:36]} 8...
Ne5 {[%clk 0:02:29.8]} 9. e4 {[%clk 0:01:34.1]} 9... fxe4 {[%clk 0:02:05.3]} 10.
Nxe5 {[%clk 0:01:20.1]} 10... dxe5 {[%clk 0:02:02]} 11. dxe6 {[%clk 0:01:17.4]}
11... Bxe6 {[%clk 0:01:53.8]} 12. Nxe4 {[%clk 0:01:15.9]} 12... O-O {[%clk
0:01:50.1]} 13. O-O-O {[%clk 0:01:13.1]} 13... Nxe4 {[%clk 0:01:44.8]} 14. Qxe4
{[%clk 0:01:10.8]} 14... Bf5 {[%clk 0:01:42.7]} 15. Qxe5 {[%clk 0:01:03.4]}
15... c6 {[%clk 0:01:31.7]} 16. Bc3 {[%clk 0:00:58]} 16... Bg5+ {[%clk
0:01:17.5]} 17. f4 {[%clk 0:00:49.4]} 17... Bxf4+ {[%clk 0:01:03]} 18. Qxf4
{[%clk 0:00:29.6]} 18... Qxd1+ {[%clk 0:01:02.7]} 19. Kxd1 {[%clk 0:00:29.3]}
19... Bc2+ {[%clk 0:01:02.9]} 20. Kxc2 {[%clk 0:00:29.9]} 20... Rxf4 {[%clk
0:01:03.3]} 21. c5 {[%clk 0:00:22.7]} 21... b6 {[%clk 0:00:53.9]} 22. b3 {[%clk
0:00:20.9]} 22... b5 {[%clk 0:00:45]} 23. Bd3 {[%clk 0:00:19.2]} 23... Rf2+
{[%clk 0:00:44.5]} 24. Kc1 {[%clk 0:00:19.2]} 24... Rxg2 {[%clk 0:00:37.1]} 25.
Be4 {[%clk 0:00:19]} 25... Rg5 {[%clk 0:00:32]} 26. Bxc6 {[%clk 0:00:17.6]}
26... Rc8 {[%clk 0:00:32.4]} 27. Bxb5 {[%clk 0:00:16.4]} 27... Rcxc5 {[%clk
0:00:28.4]} 28. Bc4+ {[%clk 0:00:16.6]} 28... Kh8 {[%clk 0:00:27.6]} 29. Re1
{[%clk 0:00:16.4]} 29... h5 {[%clk 0:00:23.6]} 30. Re7 {[%clk 0:00:16.2]} 30...
a5 {[%clk 0:00:19.8]} 31. Bd4 {[%clk 0:00:16.3]} 31... Rc8 {[%clk 0:00:17.7]}
32. Kd2 {[%clk 0:00:14.9]} 32... a4 {[%clk 0:00:17.4]} 33. Kd3 {[%clk
0:00:13.3]} 33... axb3 {[%clk 0:00:16.2]} 34. Bxb3 {[%clk 0:00:11.2]} 34... Rg4
{[%clk 0:00:14.1]} 35. Re3 {[%clk 0:00:10.3]} 35... Rd8 {[%clk 0:00:12.9]} 36.
Re4 {[%clk 0:00:09]} 36... Rg2 {[%clk 0:00:10.6]} 37. Bc4 {[%clk 0:00:06.8]}
37... Rxh2 {[%clk 0:00:09.4]} 38. a4 {[%clk 0:00:06.4]} 38... Rh3+ {[%clk
0:00:09]} 39. Re3 {[%clk 0:00:06.1]} 39... Rh4 {[%clk 0:00:08.7]} 40. Re4 {[%clk
0:00:05.7]} 40... Rh3+ {[%clk 0:00:07.7]} 41. Re3 {[%clk 0:00:05.5]} 41... Rh4
{[%clk 0:00:07.1]} 42. Re4 {[%clk 0:00:05.4]} 42... Rh1 {[%clk 0:00:04.3]} 43.
a5 {[%clk 0:00:04.7]} 43... h4 {[%clk 0:00:04.6]} 44. a6 {[%clk 0:00:04.9]}
44... h3 {[%clk 0:00:05.5]} 45. Rh4# {[%clk 0:00:02.3]} 1-0